bitfinex-derivatives/quotes_ETHF0:USTF0_20250926
["timestamp","ask_amount","ask_price","bid_price","bid_amount"]
[1758922600092,42.62960546,4013.6,4013.5,0.25376133]
[1758922601291,42.62952616,4013.6,4013.5,0.25376133]
[1758922605688,42.62952616,4013.6,4013.5,0.00176133]
[1758922608599,1.38135616,4013.6,4013.5,0.43546133]
[1758922608899,1.39282616,4013.6,4013.5,0.62926133]
[1758922610898,0.00207503,4013.6,4013.5,9.28524133]
[1758922611399,0.00207503,4013.6,4013.5,9.35424133]
[1758922617203,0.00207503,4013.6,4013.5,9.60624133]
[1758922620008,0.3542,4014.5,4014.4,0.88178]
[1758922620208,0.3542,4014.5,4014.4,3.12901153]
[1758922620411,1.00611,4015.0,4014.9,0.66002]
[1758922620611,0.5581,4015.0,4014.9,1.13272]
[1758922620908,0.55986842,4015.0,4014.9,0.6847]
[1758922621796,1.00787842,4015.0,4014.9,0.6847]
[1758922622008,1.33327842,4015.0,4014.9,0.6847]
[1758922622302,1.33327842,4015.0,4014.9,0.463]
[1758922622799,1.20584,4014.7,4014.6,3.2078]
[1758922622997,1.20589,4014.3,4014.2,0.19864561]
[1758922623213,1.20589,4014.3,4014.2,0.44964561]
[1758922623808,1.20589,4014.3,4014.2,0.251]
[1758922626412,1.20589,4014.3,4014.2,0.463]
[1758922628614,0.7578,4014.3,4014.2,0.9111]
[1758922628815,1.20589,4014.3,4014.2,0.463]
[1758922630525,1.20589,4014.3,4014.2,0.251]
[1758922631425,1.20589,4014.3,4014.2,0.4611]
[1758922633915,1.20589,4014.3,4014.2,0.9092]
[1758922634727,1.20589,4014.3,4014.2,0.4611]
[1758922635317,1.20589,4014.3,4014.2,0.9092]
[1758922638332,1.20589,4014.3,4014.2,0.4611]
[1758922638532,1.20589,4014.3,4014.2,1.89788217]
[1758922638731,1.20589,4014.3,4014.2,2.34598217]
[1758922639233,1.20589,4014.3,4014.2,3.68752365]
[1758922642133,1.20589,4014.3,4014.2,2.34598217]
[1758922642727,0.77349,4014.3,4014.2,2.56008217]
[1758922642928,0.77349,4014.3,4014.2,2.76238217]
[1758922643228,1.00019,4014.3,4014.2,2.56008217]
[1758922643528,1.22229,4014.3,4014.2,2.56008217]
[1758922647637,0.7742,4014.3,4014.2,2.56008217]
[1758922647837,1.22229,4014.3,4014.2,2.56008217]
[1758922649841,1.22229,4014.3,4014.2,5.76788217]
[1758922653242,1.22229,4014.3,4014.2,5.31978217]
[1758922654047,1.22229,4014.3,4014.2,5.76788217]
[1758922656845,1.22229,4014.3,4014.2,3.632]
[1758922657045,1.72110712,4014.3,4014.2,1.89788217]
[1758922657844,1.22229,4014.3,4014.2,1.89788217]
[1758922660241,1.22229,4014.3,4014.2,2.11198217]
[1758922664756,1.22229,4014.3,4014.2,2.79330651]
[1758922666759,1.22229,4014.3,4014.2,0.89542434]
[1758922666957,0.8862,4014.2,4014.1,0.89542434]
[1758922667153,1.2119,4014.2,4014.1,1.36882434]
[1758922667852,1.2119,4014.2,4014.1,0.4734]
[1758922669059,1.2119,4014.2,4014.1,0.6823]
[1758922670657,1.70870396,4014.2,4014.1,0.6823]
[1758922671154,1.2119,4014.2,4014.1,0.6823]
[1758922671960,1.7087143,4014.2,4014.1,0.6823]
[1758922673159,1.2119,4014.2,4014.1,0.6823]
[1758922675563,1.2119,4014.2,4014.1,0.4734]
[1758922676750,0.58082,4014.0,4013.9,1.65918217]
[1758922676957,1.34462,4014.0,4013.9,1.91018217]
[1758922677262,1.34462,4014.0,4013.9,2.11908217]
[1758922679564,1.34462,4014.0,4013.9,2.32288217]
[1758922680164,1.34462,4014.0,4013.9,2.11908217]
[1758922680362,1.21193,4013.9,4013.8,1.34447004]
[1758922680558,1.21193,4013.9,4013.8,1.43678217]
[1758922680764,1.21197,4013.6,4013.5,0.00176133]
[1758922681061,1.21207,4012.7,4012.6,3.6391]
[1758922681268,1.31620973,4012.7,4012.6,5.32688217]
[1758922681463,0.87810973,4012.7,4012.6,5.53068217]
[1758922682160,0.87810973,4012.7,4012.6,5.53322473]
[1758922683265,0.42983973,4012.7,4012.6,5.53322473]
[1758922683467,3.3405,4013.5,4012.6,5.53322473]
[1758922683468,0.77389,4013.4,4013.3,0.4313]
[1758922683666,0.77389,4013.4,4013.3,2.32288217]
[1758922683862,0.99469,4013.4,4013.3,2.32288217]
[1758922684264,0.77389,4013.4,4013.3,2.77108217]
[1758922684559,0.44817,4013.6,4013.4,0.2089]
[1758922684760,0.44817,4013.6,4013.5,0.8861]
[1758922684959,0.77387,4013.6,4013.5,1.33428]
[1758922685858,0.3257,4013.6,4013.5,1.33428]
[1758922686059,0.77387,4013.6,4013.5,1.33428]
[1758922688068,0.3257,4013.6,4013.5,1.33428]
[1758922688265,0.77387,4013.6,4013.5,1.33428]
[1758922688972,0.98237,4013.6,4013.5,1.33428]
[1758922691975,0.44811,4014.1,4014.0,1.33512]
[1758922692270,0.44811,4014.1,4014.0,1.58612]
[1758922693068,0.44811,4014.1,4014.0,1.138]
[1758922693470,0.66971,4014.1,4014.0,1.138]
[1758922694068,0.98541,4014.1,4014.0,1.138]
[1758922694274,0.98541,4014.1,4014.0,1.0116]
[1758922696368,0.98541,4014.1,4014.0,1.45972]
[1758922700475,0.98541,4014.1,4014.0,1.66019703]
[1758922700777,0.98541,4014.1,4014.0,3.45071967]
[1758922701374,0.66969,4014.3,4014.2,0.88059]
[1758922701573,0.98539,4014.3,4014.2,3.24861264]
[1758922702469,0.5373,4014.3,4014.2,3.24861264]
[1758922702875,0.98539,4014.3,4014.2,3.24861264]
[1758922705677,0.5373,4014.3,4014.2,3.24861264]
[1758922705973,0.98534,4014.9,4014.8,0.4325]
[1758922706167,0.98534,4014.9,4014.8,2.80052264]
[1758922706373,0.5373,4014.9,4014.8,3.24855264]
[1758922706569,0.98532,4014.9,4014.8,3.24855264]
[1758922706976,0.5373,4014.9,4014.8,3.24855264]
[1758922707976,0.00176842,4015.0,4014.8,3.24855264]
[1758922708169,0.00176842,4015.0,4014.9,4.41482]
[1758922708375,0.00176842,4015.0,4014.9,5.75506844]
[1758922710273,0.00176842,4015.0,4014.9,4.41482]
[1758922710477,0.00176842,4015.0,4014.9,49.60506844]
[1758922710688,0.00176842,4015.0,4014.9,48.26482]
[1758922711386,0.00176842,4015.0,4014.9,49.60004527]
[1758922714380,0.00176842,4015.0,4014.9,5.75004527]
[1758922714583,0.31746842,4015.0,4014.9,44.84704527]
[1758922714886,0.00176842,4015.0,4014.9,44.84704527]
[1758922716287,0.00176842,4015.0,4014.9,43.51182]
[1758922716480,0.00176842,4015.0,4014.9,44.84704527]
[1758922718887,0.00176842,4015.0,4014.9,43.51182]
[1758922719387,0.7544,4016.4,4015.5,0.1248]
[1758922719688,0.7544,4016.4,4016.3,0.66946]
[1758922720081,0.7544,4016.4,4016.3,0.92046]
[1758922720283,0.7544,4016.4,4016.3,0.92230802]
[1758922720487,0.75625392,4016.4,4016.3,0.92230802]
[1758922722586,0.75625392,4016.4,4016.3,0.67130802]
[1758922722791,0.75625392,4016.4,4016.3,0.92230802]
[1758922723388,0.75625392,4016.4,4016.3,1.14580802]
[1758922723683,0.53915392,4016.4,4016.3,3.26323066]
[1758922724077,0.31755392,4016.4,4016.3,3.26323066]
[1758922726383,0.00185392,4016.4,4016.3,3.26323066]
[1758922736590,0.1242,4017.5,4016.9,0.4478]
[1758922736591,0.3131,4017.0,4016.9,0.4478]
[1758922736793,0.5255,4017.0,4016.9,3.25192264]
[1758922737692,0.52739996,4017.0,4016.9,3.25192264]
[1758922741502,0.74639996,4017.0,4016.9,3.25192264]
[1758922746406,1.19418996,4017.0,4016.9,3.25192264]
[1758922749807,0.74639996,4017.0,4016.9,3.25192264]
[1758922750210,1.32668996,4017.0,4016.9,2.22622264]
[1758922750415,1.32668996,4017.0,4016.9,2.47722264]
[1758922750711,1.32668996,4017.0,4016.9,2.80512264]
[1758922751205,1.32668996,4017.0,4016.9,3.25292264]
[1758922753704,1.19418996,4017.0,4016.9,3.25292264]
[1758922753904,0.74639996,4017.0,4016.9,3.25292264]
[1758922754106,0.52739996,4017.0,4016.9,3.25292264]
[1758922755312,0.00189996,4017.0,4016.9,4.33699863]
[1758922755613,0.53069996,4017.0,4016.9,4.58799863]
[1758922760614,0.53069996,4017.0,4016.9,3.25292264]
[1758922760819,0.53069996,4017.0,4016.9,4.59211749]
[1758922762316,0.97848996,4017.0,4016.9,3.25292264]
[1758922762511,0.97848996,4017.0,4016.9,2.89717764]
[1758922764119,0.53069996,4017.0,4016.9,2.89717764]
[1758922764310,0.97848996,4017.0,4016.9,2.89717764]
[1758922766014,1.32608996,4017.0,4016.9,2.44937764]
[1758922768522,1.20098996,4017.0,4016.9,2.89717764]
[1758922768820,1.20098996,4017.0,4016.9,2.44937764]
[1758922769222,1.20098996,4017.0,4016.9,2.89717764]
[1758922769422,1.20098996,4017.0,4016.9,2.19837764]
[1758922769611,1.20098996,4017.0,4016.9,2.44937764]
[1758922770321,1.20098996,4017.0,4016.9,2.89717764]
[1758922771824,1.32608996,4017.0,4016.9,2.89717764]
[1758922772018,1.32608996,4017.0,4016.9,2.44937764]
[1758922772622,1.32608996,4017.0,4016.9,2.89717764]
[1758922773021,1.32608996,4017.0,4016.9,2.44937764]
[1758922773222,1.32608996,4017.0,4016.9,2.89717764]
[1758922774724,0.87829996,4017.0,4016.9,2.89717764]
[1758922774918,1.32608996,4017.0,4016.9,2.89717764]
[1758922775117,1.32608996,4017.0,4016.9,2.44937764]
[1758922775526,1.20098996,4017.0,4016.9,2.89717764]
[1758922777621,1.32608996,4017.0,4016.9,1.87047764]
[1758922777822,0.65331,4016.8,4016.7,3.4268]
[1758922778023,1.19911,4016.8,4016.7,5.11257764]
[1758922778318,1.19911,4016.8,4016.7,5.63687764]
[1758922784530,1.19911,4016.8,4016.7,6.08469764]
[1758922784718,1.19911,4016.8,4016.7,5.63687764]
[1758922785124,1.19911,4016.8,4016.7,6.08469764]
[1758922790529,1.19911,4016.8,4016.7,5.83369764]
[1758922790836,1.19911,4016.8,4016.7,6.08469764]
[1758922793033,0.44781,4016.8,4016.7,6.08469764]
[1758922793929,0.44781,4016.8,4016.7,5.63687764]
[1758922794130,0.78571,4016.8,4016.7,6.08469764]
[1758922795634,0.99641,4016.8,4016.7,5.63687764]
[1758922796028,0.99641,4016.8,4016.7,6.08469764]
[1758922797834,0.99641,4016.8,4016.7,5.83369764]
[1758922798133,0.99641,4016.8,4016.7,6.08469764]
[1758922798933,0.78571,4016.8,4016.7,6.08469764]
[1758922800130,1.20781,4016.8,4016.7,5.32757764]
[1758922800330,1.20783,4016.6,4016.5,1.78872197]
[1758922800529,0.1311,4016.5,4016.3,0.00184802]
[1758922800734,1.20792,4015.8,4015.7,0.2085]
[1758922801033,1.20798,4015.3,4015.2,3.9623]
[1758922801235,1.71874398,4015.3,4015.2,1.0065]
[1758922801634,1.20798,4015.3,4015.2,1.0065]
[1758922801830,1.20798,4015.3,4015.2,0.00205893]
[1758922802137,1.71805926,4015.3,4015.2,0.25405893]
[1758922802337,6.71805926,4015.3,4015.2,0.25405893]
[1758922803136,6.71805926,4015.3,4015.2,0.00205893]
[1758922803339,6.20798,4015.3,4015.2,0.00205893]
[1758922803544,6.20798,4015.3,4015.2,0.25405893]
[1758922804437,6.20798,4015.3,4015.2,0.00205893]
[1758922804642,6.20798,4015.3,4015.2,0.25405893]
[1758922805648,6.20798,4015.3,4015.2,0.00205893]
[1758922805852,6.20798,4015.3,4015.2,0.25405893]
[1758922806945,6.20798,4015.3,4015.2,0.00205893]
[1758922825349,6.72407174,4015.3,4015.2,0.00205893]
[1758922832063,1.32297,4014.5,4014.4,1.34086969]
[1758922832265,1.83906174,4014.5,4014.4,1.90226969]
[1758922832465,1.83906174,4014.5,4014.4,0.5614]
[1758922832864,1.83906174,4014.5,4014.4,0.7726]
[1758922833166,1.83906174,4014.5,4014.4,0.77463697]
[1758922840275,1.83906174,4014.5,4014.4,0.43503697]
[1758922840470,1.83906174,4014.5,4014.4,0.77463697]
[1758922843384,1.83906174,4014.5,4014.4,0.43503697]
[1758922843578,1.83906174,4014.5,4014.4,0.68603697]
[1758922844171,1.83906174,4014.5,4014.4,1.01863697]
[1758922844378,1.32297,4014.5,4014.4,1.01863697]
[1758922846382,1.32297,4014.5,4014.4,2.35950666]
[1758922847884,1.32297,4014.5,4014.4,2.02690666]
[1758922848385,1.32297,4014.5,4014.4,2.35950666]
[1758922850690,1.8255819,4014.5,4014.4,0.00203697]
[1758922850986,1.8255819,4014.5,4014.4,0.25303697]
[1758922852879,1.8255819,4014.5,4014.4,0.00203697]
[1758922853082,1.8255819,4014.5,4014.4,0.25303697]
[1758922859391,1.8255819,4014.5,4014.4,0.00203697]
[1758922859589,1.8255819,4014.5,4014.4,0.25303697]
[1758922863395,1.8255819,4014.5,4014.4,0.46283697]
[1758922864087,1.8255819,4014.5,4014.4,0.25303697]
[1758922868297,1.8255819,4014.5,4014.4,0.00203697]
[1758922868497,1.8255819,4014.5,4014.4,0.25303697]
[1758922885014,1.32297,4014.5,4014.4,0.25303697]
[1758922885218,1.82644636,4014.5,4014.4,0.25303697]
[1758922893531,1.82644636,4014.5,4014.4,0.47893697]
[1758922895129,1.82644636,4014.5,4014.4,0.25303697]
[1758922907633,3.26345196,4014.5,4014.4,0.00203697]
[1758922912139,1.82644636,4014.5,4014.4,0.00203697]
[1758922912337,3.26345196,4014.5,4014.4,0.00203697]
[1758922923649,1.20597,4013.6,4013.5,0.9166]
[1758922923842,1.3146373,4013.6,4013.5,0.9166]
[1758922924551,1.31730739,4013.6,4013.5,0.91844063]
[1758922925344,1.31730739,4013.6,4013.5,0.42744063]
[1758922925649,1.82645567,4013.6,4013.5,0.20914063]
[1758922926046,1.82644151,4013.6,4013.5,0.20914063]
[1758922926851,1.82644151,4013.6,4013.5,0.00184063]
[1758922931857,1.82644151,4013.6,4013.5,0.45002063]
[1758922934761,1.82644151,4013.6,4013.5,0.00184063]
[1758922975891,1.83118995,4013.6,4013.5,0.00184063]
[1758922977798,1.83119114,4013.6,4013.5,0.00184063]
[1758922978600,1.83727058,4013.6,4013.5,0.00184063]
[1758922980196,1.83727211,4013.6,4013.5,0.00184063]
[1758922981206,1.72386781,4013.6,4013.5,0.00184063]
[1758922981394,1.83727312,4013.6,4013.5,0.00184063]
[1758923004824,1.83727312,4013.6,4013.5,0.22444063]
[1758923005022,1.83727312,4013.6,4013.5,0.76364063]
[1758923005023,1.07947312,4013.6,4013.5,0.76364063]
[1758923005325,1.38667312,4013.6,4013.5,5.89174063]
[1758923006129,1.38667312,4013.6,4013.5,6.14274063]
[1758923006924,1.38667312,4013.6,4013.5,5.89174063]
[1758923007130,1.38667312,4013.6,4013.5,6.14274063]
[1758923007624,1.80297312,4013.6,4013.5,5.43984063]
[1758923007828,1.80297312,4013.6,4013.5,0.00184063]
[1758923008129,3.24036587,4013.6,4013.5,0.00184063]
[1758923015834,3.12696056,4013.6,4013.5,0.00184063]
[1758923016026,3.2376576,4013.6,4013.5,0.00184063]
[1758923029047,3.23737595,4013.6,4013.5,0.00184063]
[1758923033456,3.23737595,4013.6,4013.5,0.21474063]
[1758923037755,3.23737595,4013.6,4013.5,0.00184063]
[1758923041068,3.23744899,4013.6,4013.5,0.00184063]
[1758923044162,3.23744864,4013.6,4013.5,0.00184063]
[1758923045073,3.23744865,4013.6,4013.5,0.00184063]
[1758923045373,3.23744872,4013.6,4013.5,0.00184063]
[1758923047670,1.80005597,4013.6,4013.5,0.00184063]
[1758923056579,1.58865597,4013.6,4013.5,0.00184063]
[1758923056982,1.80235597,4013.6,4013.5,0.53824063]
[1758923060387,1.80235597,4013.6,4013.5,0.22154063]
[1758923060683,1.80235597,4013.6,4013.5,0.00184063]
[1758923076007,1.07655597,4013.6,4013.5,0.75294063]
[1758923076201,1.82985597,4013.6,4013.5,0.75294063]
[1758923076401,1.82985597,4013.6,4013.5,0.43624063]
[1758923078512,1.82985597,4013.6,4013.5,0.22154063]
[1758923083010,1.82985597,4013.6,4013.5,0.00184063]
[1758923099629,1.31462825,4013.6,4013.5,0.00184063]
[1758923099817,1.84154276,4013.6,4013.5,0.00184063]
[1758923102433,1.7310546,4013.6,4013.5,0.00184063]
[1758923102632,1.84570567,4013.6,4013.5,0.00184063]
[1758923110738,1.12031,4014.1,4013.5,0.22814063]
[1758923111039,0.1272,4016.0,4015.9,0.44791]
[1758923111340,0.0846156,4016.5,4016.1,0.44789]
[1758923111541,0.0846156,4016.5,4016.4,3.2078]
[1758923111736,0.08769655,4016.5,4016.4,3.93857313]
[1758923111942,0.08769655,4016.5,4016.4,9.38643313]
[1758923112841,0.40499655,4016.5,4016.4,9.38643313]
[1758923113443,0.40499655,4016.5,4016.4,4.38643313]
[1758923113740,0.40499655,4016.5,4016.4,4.64143313]
[1758923118140,0.62479655,4016.5,4016.4,4.64143313]
[1758923118446,0.62479655,4016.5,4016.4,4.64043313]
[1758923119643,0.83999655,4016.5,4016.4,4.38643313]
[1758923119848,0.83999655,4016.5,4016.4,4.64043313]
[1758923130459,1.36679929,4016.5,4016.4,4.64043313]
[1758923131348,1.36679929,4016.5,4016.4,6.4153586]
[1758923133250,1.36679929,4016.5,4016.4,4.64043313]
[1758923133451,1.36679929,4016.5,4016.4,6.4153586]
[1758923134557,1.36679929,4016.5,4016.4,4.64043313]
[1758923135256,1.36679929,4016.5,4016.4,6.14908914]
[1758923135459,1.36679929,4016.5,4016.4,4.64043313]
[1758923137152,1.36679929,4016.5,4016.4,6.40567903]
[1758923137359,1.36679929,4016.5,4016.4,4.64043313]
[1758923138355,0.02292604,4016.5,4016.4,4.64043313]
[1758923138560,0.58222604,4016.5,4016.4,4.64043313]
[1758923139355,0.44783,4016.7,4016.6,0.44784]
[1758923139659,0.88537661,4016.7,4016.6,1.42975097]
[1758923139861,5.52300683,4016.7,4016.6,1.17675097]
[1758923140062,5.52300683,4016.7,4016.6,1.42975097]
[1758923140463,5.39247683,4016.7,4016.6,1.42975097]
[1758923141060,5.39247683,4016.7,4016.6,1.17675097]
[1758923141257,5.39247683,4016.7,4016.6,1.42975097]
[1758923141456,5.84030683,4016.7,4016.6,1.42975097]
[1758923142361,5.84030683,4016.7,4016.6,2.48329373]
[1758923144455,5.84030683,4016.7,4016.6,0.70084]
[1758923144961,1.20267661,4016.7,4016.6,0.70084]
[1758923145161,5.84030683,4016.7,4016.6,0.70084]
[1758923145764,5.39247683,4016.7,4016.6,0.70084]
[1758923146265,5.39247683,4016.7,4016.6,2.48358483]
[1758923150369,5.39247683,4016.7,4016.6,0.70084]
[1758923150771,5.39247683,4016.7,4016.6,3.90864]
[1758923151275,5.39247683,4016.7,4016.6,5.69133684]
[1758923153172,5.39247683,4016.7,4016.6,5.43833684]
[1758923153373,5.39247683,4016.7,4016.6,5.69133684]
[1758923154874,0.75484661,4016.7,4016.6,5.69133684]
[1758923155172,5.39247683,4016.7,4016.6,5.69133684]
[1758923158173,0.53964661,4016.7,4016.6,5.69133684]
[1758923158875,0.74404661,4016.7,4016.6,5.69133684]
[1758923161377,0.74404661,4016.7,4016.6,3.90864]
[1758923166178,0.53964661,4016.7,4016.6,3.90864]
[1758923166781,0.74604661,4016.7,4016.6,3.90864]
[1758923168879,0.31984661,4016.7,4016.6,3.90864]
[1758923169082,0.31984661,4016.7,4016.6,5.69133684]
[1758923170083,0.53704661,4016.7,4016.6,5.69133684]
[1758923171385,0.53704661,4016.7,4016.6,3.90864]
[1758923173988,0.31984661,4016.7,4016.6,3.90864]
[1758923174485,0.54004661,4016.7,4016.6,3.90864]
[1758923175584,0.31984661,4016.7,4016.6,3.90864]
[1758923176389,0.54004661,4016.7,4016.6,3.90864]
[1758923177380,0.31984661,4016.7,4016.6,3.90864]
[1758923177887,0.54004661,4016.7,4016.6,3.90864]
[1758923180085,0.74904661,4016.7,4016.6,3.90864]
[1758923182791,0.31984661,4016.7,4016.6,3.90864]
[1758923183393,0.54004661,4016.7,4016.6,3.90864]
[1758923183591,0.31984661,4016.7,4016.6,3.90864]
[1758923184591,0.54004661,4016.7,4016.6,3.90864]
[1758923194501,0.31984661,4016.7,4016.6,3.90864]
[1758923194994,0.54004661,4016.7,4016.6,3.90864]
[1758923200403,0.54004661,4016.7,4016.6,3.65564]
[1758923200702,0.54004661,4016.7,4016.6,3.90764]
[1758923213509,0.54004661,4016.7,4016.6,5.69033684]
[1758923214606,0.54004661,4016.7,4016.6,3.90764]
[1758923217406,0.76334661,4016.7,4016.6,3.65564]
[1758923217601,0.76334661,4016.7,4016.6,3.90664]
[1758923217805,5.40097683,4016.7,4016.6,3.90664]
[1758923221916,0.76334661,4016.7,4016.6,3.90664]
[1758923223418,5.40097683,4016.7,4016.6,3.90664]
[1758923223609,5.84880683,4016.7,4016.6,3.90664]
[1758923224111,5.40097683,4016.7,4016.6,3.90664]
[1758923224614,5.40097683,4016.7,4016.6,3.65564]
[1758923224814,5.40097683,4016.7,4016.6,3.90664]
[1758923226420,0.76334661,4016.7,4016.6,3.90664]
[1758923226719,5.40097683,4016.7,4016.6,3.65564]
[1758923226918,5.40097683,4016.7,4016.6,3.90664]
[1758923228921,5.40097683,4016.7,4016.6,3.65564]
[1758923229121,5.40097683,4016.7,4016.6,3.90664]
[1758923229515,5.84880683,4016.7,4016.6,3.90664]
[1758923229714,5.84880683,4016.7,4016.6,3.65564]
[1758923230522,5.84880683,4016.7,4016.6,3.90664]
[1758923231924,1.21117661,4016.7,4016.6,3.90664]
[1758923232119,5.84880683,4016.7,4016.6,3.90664]
[1758923233525,5.40097683,4016.7,4016.6,3.90664]
[1758923234925,1.21117661,4016.7,4016.6,3.90664]
[1758923235127,5.40097683,4016.7,4016.6,3.90664]
[1758923235728,5.84880683,4016.7,4016.6,3.90664]
[1758923236733,5.40097683,4016.7,4016.6,3.90664]
[1758923237031,5.84880683,4016.7,4016.6,3.90664]
[1758923237231,5.84880683,4016.7,4016.6,3.65564]
[1758923237425,5.84880683,4016.7,4016.6,3.90664]
[1758923237927,5.84880683,4016.7,4016.6,3.65564]
[1758923238229,5.40097683,4016.7,4016.6,3.90664]
[1758923244533,0.76334661,4016.7,4016.6,3.90664]
[1758923244723,5.40097683,4016.7,4016.6,3.90664]
[1758923247636,0.76334661,4016.7,4016.6,3.90664]
[1758923247935,5.40097683,4016.7,4016.6,3.90664]
[1758923249337,0.76334661,4016.7,4016.6,3.90664]
[1758923249532,5.40097683,4016.7,4016.6,3.90664]
[1758923252739,0.76334661,4016.7,4016.6,3.90664]
[1758923255835,0.54004661,4016.7,4016.6,3.90664]
[1758923256438,0.75164661,4016.7,4016.6,3.90664]
[1758923262137,0.54004661,4016.7,4016.6,3.90664]
[1758923262337,0.31984661,4016.7,4016.6,3.90664]
[1758923262841,0.52564661,4016.7,4016.6,3.90664]
[1758923265041,0.52564661,4016.7,4016.6,3.65564]
[1758923265242,0.52564661,4016.7,4016.6,3.90664]
[1758923270852,0.52564661,4016.7,4016.6,3.65564]
[1758923271046,0.74024661,4016.7,4016.6,3.90664]
[1758923271352,0.74024661,4016.7,4016.6,3.65564]
[1758923271544,0.74024661,4016.7,4016.6,3.90664]
[1758923273147,0.52564661,4016.7,4016.6,3.90664]
[1758923273453,0.31984661,4016.7,4016.6,3.90664]
[1758923274054,0.52564661,4016.7,4016.6,3.90664]
[1758923275554,0.74024661,4016.7,4016.6,3.90664]
[1758923281956,5.37787683,4016.7,4016.6,3.90664]
[1758923282755,5.82570683,4016.7,4016.6,3.65564]
[1758923282960,6.32998222,4016.7,4016.6,3.4588]
[1758923283966,6.32998222,4016.7,4016.6,3.2078]
[1758923284159,6.32998222,4016.7,4016.6,3.4588]
[1758923284458,11.32998222,4016.7,4016.6,3.2078]
[1758923284659,11.32998222,4016.7,4016.6,3.4588]
[1758923285066,11.32998222,4016.7,4016.6,3.2078]
[1758923285764,11.32998222,4016.7,4016.6,3.4588]
[1758923286462,0.2102,4015.8,4015.5,1.33985515]
[1758923286657,1.19309,4015.2,4015.1,1.99128275]
[1758923286960,0.3467,4014.5,4014.1,3.2078]
[1758923287157,0.62147507,4014.2,4014.1,3.2078]
[1758923287365,0.83507507,4014.2,4014.1,3.2078]
[1758923287564,0.83507507,4014.2,4014.1,0.00290078]
[1758923287760,0.83507507,4014.2,4014.1,0.25390078]
[1758923288367,0.83507507,4014.2,4014.1,0.00290078]
[1758923288963,0.83507507,4014.2,4014.1,0.25390078]
[1758923289163,0.83507507,4014.2,4014.1,0.00290078]
[1758923289363,0.83507507,4014.2,4014.1,0.25390078]
[1758923290470,5.83507507,4014.2,4014.1,0.25390078]
[1758923295570,6.28317507,4014.2,4014.1,0.00290078]
[1758923296676,1.28317507,4014.2,4014.1,0.00290078]
[1758923296873,1.28317507,4014.2,4013.0,3.2078]
[1758923296874,0.44823,4013.1,4013.0,3.2078]
[1758923297067,1.17753,4013.1,4013.0,3.2078]
[1758923297267,1.17753,4013.1,4013.0,3.4588]
[1758923297572,1.17753,4013.1,4013.0,3.2078]
[1758923297877,1.180206,4013.1,4013.0,3.20998605]
[1758923298071,1.180206,4013.1,4013.0,3.46098605]
[1758923300774,1.180206,4013.1,4013.0,3.20998605]
[1758923301077,1.180206,4013.1,4013.0,3.46098605]
[1758923306086,1.180206,4013.1,4013.0,0.25318605]
[1758923307189,1.29255799,4013.1,4013.0,0.25318605]
[1758923311388,1.29255799,4013.1,4013.0,0.00218605]
[1758923311588,1.29255799,4013.1,4013.0,0.25318605]
[1758923312088,1.29255799,4013.1,4013.0,0.70142605]
[1758923316298,1.81245402,4013.1,4013.0,0.70142605]
[1758923316792,1.81245402,4013.1,4013.0,0.45042605]
[1758923316991,1.81245402,4013.1,4013.0,0.25318605]
[1758923317197,1.81245402,4013.1,4013.0,0.00218605]
[1758923317396,1.81245402,4013.1,4013.0,0.25318605]
[1758923317697,1.81245402,4013.1,4013.0,0.70142605]
[1758923319095,1.81245402,4013.1,4013.0,0.45042605]
[1758923319297,1.81245402,4013.1,4013.0,0.70142605]
[1758923322601,1.81335224,4013.1,4013.0,0.70142605]
[1758923324095,1.29345621,4013.1,4013.0,0.70142605]
[1758923324397,1.81461714,4013.1,4013.0,0.70142605]
[1758923325296,1.81461714,4013.1,4013.0,0.00218605]
[1758923325505,1.81461714,4013.1,4013.0,0.25318605]
[1758923327998,1.81461714,4013.1,4013.0,0.00218605]
[1758923328404,1.81461714,4013.1,4013.0,0.25318605]
[1758923329906,1.81461714,4013.1,4013.0,0.00218605]
[1758923330102,1.81461714,4013.1,4013.0,0.25318605]
[1758923334410,1.81461714,4013.1,4013.0,0.00218605]
[1758923334802,0.88906,4012.8,4012.7,0.03062345]
[1758923335000,1.85567114,4012.8,4012.7,0.28162345]
[1758923335202,1.85567114,4012.8,4012.7,0.03062345]
[1758923335908,1.85567114,4012.8,4012.7,0.03326311]
[1758923336108,1.85567114,4012.8,4012.7,0.28426311]
[1758923340011,1.86022486,4012.8,4012.7,0.28426311]
[1758923340207,1.86022486,4012.8,4012.7,0.03326311]
[1758923340910,1.86022486,4012.8,4012.7,0.00263966]
[1758923341208,0.4483,4012.4,4012.3,3.2078]
[1758923341413,1.33910393,4012.4,4012.3,3.4588]
[1758923342207,1.33910393,4012.4,4012.3,3.46087126]
[1758923342604,1.86707141,4012.4,4012.3,0.00207126]
[1758923342809,1.86707141,4012.4,4011.8,3.2078]
[1758923342810,0.88916,4011.9,4011.8,3.2078]
[1758923343010,1.8672185,4011.9,4011.8,3.4588]
[1758923343213,1.33916393,4011.9,4011.8,3.4588]
[1758923343417,1.33916393,4011.9,4011.8,3.2078]
[1758923343715,1.35161,4011.5,4011.4,0.44842]
[1758923343911,1.46941393,4011.5,4011.4,0.70193061]
[1758923344309,1.99692029,4011.5,4011.4,0.00251061]
[1758923344507,5.20472029,4011.5,4011.4,0.00251061]
[1758923346019,0.44845,4011.1,4011.0,0.251]
[1758923346224,1.31625393,4011.1,4011.0,0.251]
[1758923346625,1.19848,4010.8,4010.7,3.2078]
[1758923346822,1.31628393,4010.8,4010.7,3.4588]
[1758923347216,3.338,4011.5,4010.7,3.4588]
[1758923347217,6e-06,4013.1,4011.0,2.49]
[1758923347527,3.2078,4014.1,4011.0,2.49]
[1758923347528,0.2065,4014.2,4014.1,0.44811]
[1758923347720,0.136,4014.5,4014.1,3.4638]
[1758923347913,0.136,4014.5,4014.3,0.44809]
[1758923348314,0.13821658,4014.5,4014.3,0.45017629]
[1758923348516,9.56e-06,4014.5,4014.3,1.78413879]
[1758923348718,9.56e-06,4014.5,4014.3,0.45017629]
[1758923348919,9.56e-06,4015.0,4014.4,6.1202]
[1758923349128,9.56e-06,4015.0,4014.9,3.65582]
[1758923349325,9.56e-06,4015.0,4014.9,7.24944953]
[1758923349522,9.56e-06,4015.0,4014.9,5.91753847]
[1758923349827,8.46e-06,4015.5,4015.4,0.44797]
[1758923350130,8.46e-06,4015.5,4015.4,3.91177]
[1758923350331,8.46e-06,4015.5,4015.4,3.65577]
[1758923350522,8.46e-06,4015.5,4015.4,3.91177]
[1758923350722,8.46e-06,4015.5,4015.4,5.24146394]
[1758923351024,1e-05,4016.0,4015.9,0.44791]